bitfinex/quotes_ETHUSD_20240819
["timestamp","ask_amount","ask_price","bid_price","bid_amount"]
[1724076115261,3.212,2576.4,2576.0,3.0]
[1724076115499,3.5332,2576.4,2576.0,3.0]
[1724076115702,3.5332,2576.4,2576.1,3.88181]
[1724076115907,5.07676612,2577.1,2576.2,3.0]
[1724076115908,3.2846,2576.9,2576.2,3.0]
[1724076116409,3.2846,2576.9,2576.2,3.8816]
[1724076116557,3.2846,2576.9,2576.3,3.0]
[1724076116753,0.32846,2576.8,2576.1,3.0]
[1724076117368,0.32846,2576.8,2576.1,6.88177]
[1724076117584,0.32846,2576.8,2576.3,3.88145]
[1724076117786,0.32846,2576.8,2576.1,10.7634]
[1724076118017,0.32846,2576.8,2576.3,3.88144]
[1724076118372,3.2846,2576.9,2576.4,3.0]
[1724076118493,3.61306,2576.9,2576.3,3.88142]
[1724076118701,3.61306,2576.9,2576.5,3.88123]
[1724076119142,3.61306,2576.9,2576.6,3.0]
[1724076119937,3.61306,2576.9,2576.4,3.0]
[1724076120263,0.361306,2576.8,2576.4,3.0]
[1724076120413,0.361306,2576.8,2576.2,3.88155]
[1724076120770,0.361306,2576.8,2576.4,3.88137]
[1724076120948,3.2687,2577.2,2576.5,3.0]
[1724076121128,3.2687,2577.2,2576.6,3.88101]
[1724076121339,3.59557,2577.2,2576.7,3.0]
[1724076121812,3.59557,2577.2,2576.4,3.88127]
[1724076121813,3.59557,2577.2,2576.5,3.0]
[1724076122016,3.59557,2577.2,2576.6,3.88104]
[1724076122223,0.359557,2577.1,2576.7,3.0]
[1724076122633,3.2687,2577.2,2576.7,3.0]
[1724076123016,3.2687,2577.2,2576.5,3.0]
[1724076123251,3.2687,2577.2,2576.6,0.55]
[1724076123478,3.2687,2577.2,2576.5,3.0]
[1724076123777,3.2687,2577.2,2576.1,3.88172]
[1724076123778,3.2967,2577.0,2576.4,3.0]
[1724076123916,3.2967,2576.9,2576.2,3.0]
[1724076124115,3.2642,2576.7,2575.8,3.88219]
[1724076124309,3.2642,2576.7,2576.0,3.88198]
[1724076124515,3.2642,2576.7,2575.9,9.30413]
[1724076124734,3.2642,2576.7,2575.9,5.422]
[1724076125570,3.4294,2576.4,2575.5,5.422]
[1724076125943,3.4294,2576.2,2575.5,5.422]
[1724076126143,0.731097,2576.1,2575.5,5.422]
[1724076126385,3.4294,2576.2,2575.5,5.422]
[1724076126591,3.4294,2576.2,2575.2,3.88306]
[1724076126592,3.4294,2576.2,2575.4,3.88285]
[1724076127087,3.4294,2576.2,2575.4,3.8828]
[1724076127294,3.4294,2576.2,2575.7,3.88243]
[1724076127593,3.4294,2576.2,2575.8,3.0]
[1724076128373,3.4294,2576.2,2575.9,3.88213]
[1724076128552,3.4294,2576.2,2576.0,3.0]
[1724076128753,3.4294,2576.2,2575.8,3.0]
[1724076129260,3.4294,2576.2,2575.8,6.88219]
[1724076129459,3.4294,2576.2,2575.9,3.88199]
[1724076129659,3.4166,2576.5,2576.0,3.0]
[1724076130201,3.4166,2576.5,2576.1,3.8817]
[1724076130351,3.4166,2576.5,2576.2,3.0]
[1724076130803,3.4166,2576.5,2576.0,3.0]
[1724076130946,0.34166,2576.4,2575.7,3.88235]
[1724076131294,0.34166,2576.4,2575.8,3.55]
[1724076131648,0.34166,2576.4,2575.5,7.28]
[1724076131649,3.3972,2576.3,2575.5,7.28]
[1724076131851,3.3972,2576.2,2575.3,3.88295]
[1724076132462,3.3972,2576.2,2575.3,3.88292]
[1724076132646,0.33972,2576.1,2575.3,3.88292]
[1724076132845,3.4457,2576.0,2575.3,3.88292]
[1724076133093,3.4457,2576.0,2575.4,3.0]
[1724076133360,3.4457,2576.0,2575.4,6.88288]
[1724076133815,3.4457,2576.0,2575.4,3.0]
[1724076134513,3.4457,2576.0,2575.2,3.0]
[1724076134816,3.1974,2575.8,2575.2,3.0]
[1724076135768,3.3505,2575.7,2575.2,3.0]
[1724076135968,3.3505,2575.7,2574.7,3.88386]
[1724076136213,3.3542,2575.6,2574.5,20.6353]
[1724076136426,4.077479,2575.6,2574.5,12.867]
[1724076136724,4.077479,2575.6,2574.7,3.8838]
[1724076136871,3.3542,2575.6,2574.9,3.88364]
[1724076137083,3.3542,2575.6,2575.0,3.88347]
[1724076137286,3.3542,2575.6,2574.9,7.76719]
[1724076137537,3.3542,2575.6,2575.0,3.0]
[1724076137748,0.33542,2575.5,2575.0,3.0]
[1724076138358,4.67970408,2575.9,2574.5,7.28]
[1724076138359,3.2918,2575.3,2574.5,7.28]
[1724076138884,3.2918,2575.3,2574.1,27.43946]
[1724076138885,3.8832,2575.2,2574.1,27.43946]
[1724076139083,3.2918,2575.1,2574.1,23.55472]
[1724076139285,3.2918,2575.1,2574.3,3.88442]
[1724076139483,0.4009271,2575.0,2574.3,3.88442]
[1724076139727,0.4009271,2575.0,2574.4,3.88428]
[1724076139944,3.2918,2575.1,2574.7,3.88393]
[1724076140427,3.2918,2575.1,2574.5,3.88415]
[1724076140428,3.2918,2575.1,2574.6,3.88409]
[1724076140630,3.2918,2575.1,2574.7,3.0]
[1724076141040,3.2918,2575.1,2574.7,6.88393]
[1724076141726,3.2918,2575.1,2574.7,3.0]
[1724076141727,3.62098,2575.1,2574.7,3.0]
[1724076142032,3.62098,2575.1,2574.6,3.0]
[1724076142241,3.62098,2575.1,2574.4,3.88437]
[1724076142242,3.62098,2575.1,2574.5,3.0]
[1724076142445,0.362098,2575.0,2574.5,3.0]
[1724076142741,3.3176,2574.9,2574.2,3.0]
[1724076143122,3.3176,2574.9,2574.3,3.88453]
[1724076143323,3.3176,2574.9,2574.4,3.0]
[1724076143635,3.6855698,2574.9,2574.4,3.0]
[1724076144143,3.1508,2574.8,2574.1,3.0]
[1724076144291,3.89102798,2574.8,2574.0,6.88498]
[1724076144493,3.89102798,2574.8,2574.0,3.0]
[1724076145308,3.89102798,2574.8,2573.7,11.16535]
[1724076145309,7.77489798,2574.8,2573.7,11.16535]
[1724076145642,7.77489798,2574.8,2573.3,11.16595]
[1724076145643,3.352,2574.4,2573.3,11.16595]
[1724076145793,3.352,2574.2,2573.0,5.587]
[1724076146445,3.352,2574.1,2572.6,3.211]
[1724076146745,3.88477,2574.2,2573.0,13.20681]
[1724076146746,3.352,2573.9,2573.0,13.20681]
[1724076146891,3.352,2573.9,2573.0,9.32039]
[1724076147737,3.352,2573.9,2573.2,3.88617]
[1724076148045,3.352,2573.9,2573.1,3.88624]
[1724076148197,3.352,2573.9,2573.7,3.88537]
[1724076148450,3.352,2573.9,2573.2,3.0]
[1724076148451,3.352,2573.9,2573.8,3.0]
[1724076149143,3.352,2573.9,2573.6,3.88546]
[1724076149144,3.352,2573.9,2573.7,6.88533]
[1724076149547,3.352,2573.9,2573.7,3.0]
[1724076150878,3.1613,2574.6,2573.8,0.55]
[1724076151091,3.1613,2574.6,2574.1,3.88477]
[1724076151254,3.1613,2574.6,2574.1,7.76948]
[1724076151589,3.47743,2574.6,2574.2,3.0]
[1724076151950,3.1613,2574.6,2574.2,3.0]
[1724076152363,3.1613,2574.6,2574.3,3.88455]
[1724076153184,3.1613,2574.6,2574.4,3.0]
[1724076153908,3.1613,2574.6,2574.3,3.0]
[1724076154622,3.1613,2574.6,2573.0,4.0687066]
[1724076154623,3.1613,2574.6,2573.9,3.0]
[1724076154765,3.2137,2574.4,2573.6,3.88552]
[1724076154958,3.2137,2574.4,2573.7,3.88537]
[1724076155173,3.2137,2574.4,2573.8,3.88526]
[1724076155773,3.2137,2574.4,2573.7,3.88536]
[1724076155977,0.32137,2574.3,2573.7,3.88536]
[1724076156468,0.32137,2574.3,2573.7,7.77074]
[1724076156771,0.32137,2574.3,2573.8,3.0]
[1724076157198,3.2137,2574.4,2573.8,3.0]
[1724076158301,3.2137,2574.4,2573.6,3.0]
[1724076159620,3.4191,2574.3,2573.6,3.0]
[1724076159831,4.094,2574.9,2573.5,3.0]
[1724076159832,3.4191,2574.2,2573.5,3.0]
[1724076160428,3.4191,2574.2,2573.5,6.88563]
[1724076160729,3.4191,2574.2,2573.8,3.88522]
[1724076160876,3.3396,2575.0,2574.1,3.88485]
[1724076161071,0.33396,2574.9,2574.1,3.88485]
[1724076161296,0.33396,2574.9,2574.1,3.88478]
[1724076161516,0.33396,2574.9,2574.2,6.88468]
[1724076161668,0.33396,2574.9,2574.2,3.0]
[1724076162487,0.33396,2574.9,2574.1,3.88478]
[1724076162689,0.33396,2574.9,2574.2,3.0]
[1724076162901,3.2713,2574.8,2574.0,6.88494]
[1724076163073,3.2713,2574.6,2574.1,0.55]
[1724076163269,3.2713,2574.6,2574.0,3.0]
[1724076163541,7.1554,2574.6,2573.9,3.0]
[1724076163690,3.2713,2574.4,2573.9,3.0]
[1724076164033,3.2713,2574.3,2573.9,3.0]
[1724076164239,3.2713,2574.3,2573.4,9.3199]
[1724076164240,3.2713,2574.2,2573.4,5.434]
[1724076164425,3.1365,2574.1,2573.4,5.434]
[1724076164744,3.1365,2574.1,2573.4,9.31988]
[1724076164904,3.1365,2574.1,2573.4,9.31981]
[1724076165544,3.1365,2574.1,2573.5,3.0]
[1724076166104,3.482863,2574.1,2573.5,3.0]
[1724076166304,3.482863,2574.1,2573.4,5.434]
[1724076167338,3.482863,2574.1,2573.4,9.31988]
[1724076167508,3.482863,2574.1,2573.5,3.0]
[1724076167713,3.482863,2574.1,2573.5,6.8857]
[1724076167908,3.1365,2574.1,2573.5,6.8857]
[1724076168211,3.1365,2574.1,2573.9,3.88514]
[1724076168640,3.1365,2574.1,2574.0,3.0]
[1724076168812,4.2176,2574.9,2574.0,3.0]
[1724076168813,3.1298,2574.5,2574.0,3.0]
[1724076169340,3.1298,2574.5,2573.9,3.0]
[1724076169640,3.1298,2574.5,2573.9,6.88505]
[1724076169842,3.1298,2574.5,2574.0,3.88499]
[1724076170000,3.1298,2574.5,2574.2,3.88463]
[1724076170197,0.33396,2574.9,2574.3,6.8845]
[1724076170198,3.4624,2574.8,2574.3,6.8845]
[1724076170802,3.4624,2574.8,2574.3,3.0]
[1724076171225,3.4624,2574.8,2574.3,6.88454]
[1724076171531,3.4624,2574.8,2574.3,3.0]
[1724076172831,3.4624,2574.8,2574.2,3.0]
[1724076173064,3.4624,2574.8,2574.0,7.43491]
[1724076173065,0.34624,2574.7,2574.0,7.43491]
[1724076173867,0.34624,2574.7,2574.0,3.55]
[1724076174063,0.34624,2574.7,2574.0,7.43492]
[1724076174778,0.34624,2574.7,2574.0,9.110341]
[1724076174984,3.4624,2574.8,2574.0,5.225421]
[1724076175184,3.4624,2574.8,2574.2,3.88457]
[1724076175356,3.4624,2574.8,2574.3,3.0]
[1724076175553,3.4624,2574.8,2574.3,6.88453]
[1724076175757,3.4624,2574.8,2574.3,8.50484]
[1724076176001,3.4624,2574.8,2574.3,4.62031]
[1724076176283,3.4624,2574.8,2574.3,6.88446]
[1724076176584,3.4624,2574.8,2574.3,3.0]
[1724076179287,3.4624,2574.8,2574.3,3.8845]
[1724076179488,3.4624,2574.8,2574.4,3.0]
[1724076179855,3.4624,2574.8,2574.3,3.0]
[1724076180695,3.80864,2574.8,2574.3,3.0]
[1724076180897,3.2458,2574.6,2573.9,3.0]
[1724076181105,3.2458,2574.6,2574.0,3.88493]
[1724076181245,3.605004,2574.6,2574.1,3.0]
[1724076182143,3.605004,2574.6,2573.8,9.31919]
[1724076182144,3.605004,2574.6,2573.9,3.0]
[1724076182378,3.605004,2574.6,2574.0,0.55]
[1724076182630,3.605004,2574.6,2574.0,8.31991]
[1724076182783,3.2458,2574.6,2574.1,3.0]
[1724076182985,3.2458,2574.6,2574.2,0.55]
[1724076183328,3.2458,2574.6,2573.9,3.0]
[1724076183632,3.2458,2574.6,2573.9,6.88507]
[1724076183633,0.32458,2574.5,2573.9,6.88507]
[1724076183787,3.2458,2574.6,2573.9,6.88507]
[1724076183983,3.2458,2574.6,2574.2,3.88469]
[1724076184623,3.2458,2574.6,2573.9,6.88506]
[1724076184799,3.2458,2574.6,2574.0,0.55]
[1724076185178,3.2458,2574.6,2574.2,3.88467]
[1724076185383,3.2458,2574.6,2574.0,0.55]
[1724076185384,3.2458,2574.6,2574.3,3.0]
[1724076185697,3.2458,2574.6,2574.2,6.8847]
[1724076186045,3.2458,2574.6,2574.2,3.0]
[1724076186208,3.2458,2574.6,2574.2,6.88461]
[1724076186409,1.18670678,2575.0,2574.3,0.55]
[1724076186410,4.23483785,2574.9,2574.3,0.55]
[1724076186641,4.23483785,2574.9,2574.2,8.434]
[1724076186781,0.54215446,2574.8,2574.2,8.434]
[1724076188123,3.2925,2574.7,2574.2,3.0]
[1724076188282,4.08363785,2574.7,2573.8,9.31923]
[1724076188481,3.2157,2574.5,2573.9,3.0]
[1724076189194,3.2157,2574.5,2574.1,3.88477]
[1724076189397,3.2157,2574.5,2574.2,3.0]
[1724076189708,3.53727,2574.5,2574.1,3.0]
[1724076189916,3.53727,2574.5,2573.9,3.0]
[1724076190287,3.53727,2574.5,2573.9,6.88512]
[1724076190540,3.2157,2574.5,2574.0,3.88498]
[1724076190828,3.2157,2574.5,2574.1,3.0]
[1724076191695,3.2157,2574.5,2574.0,3.0]
[1724076191899,3.61638379,2574.5,2574.0,3.0]
[1724076192096,3.61638379,2574.5,2573.9,3.0]
[1724076192320,3.2157,2574.5,2573.9,3.0]
[1724076192697,3.2157,2574.5,2573.3,0.42850115]
[1724076192698,3.1434,2574.2,2573.3,3.88596]
[1724076192898,3.1434,2574.2,2573.0,9.3205]
[1724076192899,3.88512,2574.0,2573.0,9.3205]
[1724076193244,3.3389,2573.6,2572.8,7.28]
[1724076193455,3.3389,2573.4,2572.6,6.0742626]
[1724076193597,3.3389,2573.2,2572.3,7.28]
[1724076193796,3.2706,2573.0,2572.3,1.116778]
[1724076194010,3.2706,2573.0,2572.3,5.004228]
[1724076194236,3.2706,2573.0,2572.5,9.32115]
[1724076194540,3.2706,2573.0,2572.6,3.88711]
[1724076195504,3.2706,2573.0,2572.7,3.0]
[1724076196643,3.2706,2573.0,2572.6,3.0]
[1724076196796,3.986294,2573.0,2572.2,3.0]
[1724076197000,3.2706,2573.0,2572.2,3.0]
[1724076197445,3.2706,2573.0,2572.2,3.88764]
[1724076197643,3.2706,2573.0,2572.1,5.434]
[1724076197846,3.70186,2572.9,2572.2,3.88761]
[1724076198143,3.3748,2572.9,2572.3,0.55]
[1724076198737,3.3748,2572.9,2572.2,3.55]
[1724076199104,3.3748,2572.9,2572.2,3.0]
[1724076199444,3.71228,2572.9,2572.2,6.8877]
[1724076199641,3.3748,2572.9,2572.5,3.88719]
[1724076199841,3.3748,2572.9,2572.6,3.0]
[1724076200253,3.419,2572.8,2571.9,11.16806]
[1724076200565,3.75648,2572.8,2572.2,9.32166]
[1724076200853,3.419,2572.8,2572.3,6.88747]
[1724076201061,3.419,2572.8,2572.4,3.88733]
[1724076201215,3.419,2572.8,2572.5,3.0]
[1724076201551,3.419,2572.8,2572.3,6.88747]
[1724076201700,3.419,2572.8,2572.5,3.88717]
[1724076201899,3.1478,2573.1,2572.7,3.88696]
[1724076202103,3.1478,2573.1,2572.8,6.88679]
[1724076202345,3.1478,2573.1,2572.8,3.88679]
[1724076202643,3.1478,2573.1,2572.9,3.0]
[1724076202854,3.1478,2573.1,2572.7,3.0]
[1724076203003,3.1478,2573.1,2572.3,4.232147]
[1724076203004,3.46258,2573.1,2572.3,4.232147]
[1724076203210,3.46258,2573.1,2572.5,3.88724]
[1724076203442,3.46258,2573.1,2572.6,3.0]
[1724076203740,3.46258,2573.1,2572.6,6.88711]
[1724076203913,3.46258,2573.1,2572.6,3.0]
[1724076204114,3.1478,2573.1,2572.6,3.88709]
[1724076204321,3.1478,2573.1,2572.8,3.88668]
[1724076204628,3.1478,2573.1,2572.9,6.88658]
[1724076204830,3.1478,2573.1,2572.7,7.077]
[1724076205519,3.1478,2573.1,2572.8,0.55]
[1724076205848,3.352,2573.9,2573.2,3.8861]
[1724076206001,3.352,2573.9,2573.7,4.077]
[1724076206202,3.352,2573.9,2573.8,3.8853]
[1724076206524,1.33329231,2574.8,2573.8,11.31263672]
[1724076206525,3.3626,2574.7,2573.8,11.31263672]
[1724076206843,3.3626,2574.7,2574.1,4.077]
[1724076207047,3.3626,2574.7,2574.2,3.0]
[1724076207435,3.3626,2574.7,2574.5,3.88414]
[1724076207633,0.79113785,2575.4,2574.6,6.88396]
[1724076207634,3.3626,2575.4,2574.6,6.88396]
[1724076207833,3.3626,2575.4,2574.8,4.077]
[1724076208163,3.3626,2575.4,2574.9,3.0]
[1724076208164,7.24564,2575.4,2574.9,3.0]
[1724076208308,7.24564,2575.4,2574.2,3.88465]
[1724076208309,3.3626,2575.2,2574.6,3.0]
[1724076208508,3.2508,2575.1,2574.3,3.0]
[1724076208707,3.2508,2575.1,2574.3,35.0]
[1724076208909,3.2508,2575.1,2574.4,3.0]
[1724076209106,0.32508,2575.0,2574.4,3.0]
[1724076209543,3.2508,2575.1,2574.5,4.43414]
[1724076209724,3.2508,2575.1,2574.6,3.0]
[1724076210057,3.2508,2575.1,2574.4,3.0]
[1724076210222,3.2508,2575.1,2574.3,6.88453]
[1724076210421,0.32508,2575.0,2574.3,6.88453]
[1724076211147,0.32508,2575.0,2574.4,35.0]
[1724076211447,3.2508,2575.1,2574.5,3.0]
[1724076213022,3.2508,2575.1,2574.2,3.0]
[1724076213223,3.2508,2575.1,2574.3,0.55]
[1724076213466,3.88321,2575.2,2574.3,0.55]
[1724076213467,3.3586,2574.9,2574.3,0.55]
[1724076213954,3.3586,2574.9,2574.2,3.0]
[1724076214255,3.3586,2574.9,2574.1,6.88474]
[1724076214424,3.3586,2574.9,2574.2,35.55]
[1724076214632,3.3586,2574.9,2574.3,6.88451]
[1724076214965,3.3586,2574.9,2574.3,3.0]
[1724076215108,3.3586,2574.9,2574.0,9.31397]
[1724076215109,3.3586,2574.9,2574.1,3.0]
[1724076215308,3.88349,2575.0,2573.6,9.31454]
[1724076215309,3.129,2574.6,2573.6,9.31454]
[1724076215523,3.129,2574.4,2573.6,10.245994]
[1724076215764,3.129,2574.4,2573.6,9.31451]
[1724076215965,3.129,2574.4,2573.6,5.429]
[1724076216255,3.129,2574.4,2573.6,3.88556]
[1724076216463,3.129,2574.4,2573.5,35.0]
[1724076217154,3.129,2574.4,2573.6,3.88558]
[1724076217459,3.830321,2574.4,2573.5,35.0]
[1724076217609,3.830321,2574.4,2573.4,3.88578]
[1724076217817,3.88508,2574.0,2572.9,3.88665]
[1724076218152,3.1476,2573.8,2572.8,9.31571]
[1724076218336,3.1476,2573.8,2572.8,5.429]
[1724076218657,3.88576,2573.5,2572.4,9.31632]
[1724076218860,3.1476,2573.4,2572.6,3.88703]
[1724076219158,3.1476,2573.4,2572.6,3.88702]
[1724076219356,3.1476,2573.4,2572.5,35.931632]
[1724076219539,7.77166,2573.5,2572.4,5.429]
[1724076219540,3.3369,2573.2,2572.4,5.429]
[1724076220213,3.3369,2573.1,2572.4,5.429]
[1724076220407,3.3369,2573.0,2572.4,5.429]
[1724076221882,3.3369,2573.0,2572.2,15.05523]
[1724076221883,3.3369,2573.0,2572.2,11.1676]
[1724076222151,3.3369,2573.0,2572.3,3.0]
[1724076224146,3.3369,2573.0,2572.7,3.88695]
[1724076224458,3.3369,2573.0,2572.7,35.0]
[1724076225413,3.3369,2573.0,2572.5,3.88726]
[1724076225616,3.88551,2573.7,2572.6,6.88711]
[1724076225858,3.4095,2573.3,2573.0,3.88651]
[1724076226044,3.4095,2573.8,2573.2,3.88609]
[1724076226233,3.4095,2573.8,2573.6,3.88559]
[1724076226431,3.4095,2573.8,2573.5,3.88564]
[1724076226731,3.4095,2573.8,2573.5,3.88575]
[1724076226931,3.4095,2573.8,2573.4,3.88578]
[1724076227171,3.4095,2573.8,2573.3,1.231498]
[1724076227465,3.4095,2573.8,2573.3,3.0]
[1724076227818,3.4095,2573.8,2573.0,3.0]
[1724076228257,3.4095,2573.8,2573.2,3.88621]
[1724076228473,3.4095,2573.8,2573.4,3.88581]
[1724076228680,3.4095,2573.8,2573.5,3.88575]
[1724076228963,3.4,2574.7,2573.6,8.429]
[1724076229169,3.4,2574.7,2574.3,9.31344]
[1724076229336,3.4,2574.7,2574.4,3.0]
[1724076229732,3.4,2574.7,2574.1,3.88483]
[1724076229958,3.4,2574.7,2574.2,3.0]
[1724076231179,3.4,2574.7,2574.0,6.8849]
[1724076231320,3.4,2574.7,2574.0,3.0]
[1724076231520,0.34,2574.6,2574.0,3.0]
[1724076231967,0.34,2574.6,2574.1,35.0]
[1724076232160,0.34,2574.6,2574.2,3.0]
[1724076232968,0.34,2574.6,2574.0,3.0]
[1724076233116,3.4,2574.7,2574.3,3.88444]
[1724076233321,3.4,2574.7,2574.4,3.0]
[1724076233654,3.74,2574.7,2574.4,3.0]
[1724076233861,3.74,2574.7,2574.1,3.0]
[1724076234662,3.74,2574.7,2574.1,6.88485]
[1724076235420,3.4,2574.7,2574.3,5.429]
[1724076235636,3.4248,2575.1,2574.4,3.55]
[1724076235865,3.4248,2575.1,2574.7,3.88385]
[1724076236072,3.4248,2575.1,2574.8,3.0]
[1724076236643,3.4248,2575.1,2574.9,3.88361]
[1724076236845,1.18670678,2576.2,2574.8,3.0]
[1724076236846,3.4561,2575.9,2575.1,3.8832]
[1724076237154,3.4561,2575.9,2575.2,7.3265]
[1724076237319,3.4561,2575.9,2575.2,6.96083473]
[1724076237749,3.4561,2575.9,2575.2,6.88318]
[1724076238151,3.4561,2575.9,2575.3,3.88301]
[1724076238372,3.4561,2575.9,2575.3,3.88296]
[1724076238708,3.4561,2575.9,2575.3,5.114136]
[1724076238918,3.4561,2575.9,2575.5,3.88272]
[1724076239063,3.4561,2575.9,2575.6,3.0]
[1724076240519,3.4561,2575.9,2575.6,6.88248]
[1724076240816,3.4561,2575.9,2575.6,3.0]
[1724076240967,3.80171,2575.9,2575.6,3.0]
[1724076241162,3.80171,2575.9,2575.3,3.0]
[1724076241960,3.80171,2575.9,2575.3,6.88302]
[1724076242360,3.80171,2575.9,2575.3,3.0]
[1724076242699,3.4375,2575.7,2575.2,3.0]
[1724076243066,3.4375,2575.7,2574.7,9.31284]
[1724076243067,3.1828,2575.6,2574.8,3.0]
[1724076243260,3.1828,2575.4,2574.8,3.0]
[1724076243514,3.1828,2575.4,2574.9,3.88363]
[1724076243817,3.1828,2575.4,2575.0,6.88336]
[1724076243966,3.1828,2575.4,2575.0,3.0]
[1724076244308,3.1828,2575.4,2575.1,3.88332]
[1724076244605,3.50108,2575.4,2575.0,3.0]
[1724076244821,3.50108,2575.4,2574.7,5.429]
[1724076244822,3.50108,2575.4,2574.8,3.0]
[1724076245467,3.1828,2575.4,2574.9,3.88362]
[1724076245663,3.1828,2575.4,2575.0,3.0]
[1724076245862,3.1828,2575.4,2574.8,6.88377]
[1724076246065,3.1828,2575.4,2575.0,3.88346]
[1724076246275,3.1828,2575.4,2575.1,3.0]
[1724076246478,3.1828,2575.4,2574.9,3.88364]
[1724076246768,3.1828,2575.4,2575.0,3.0]
[1724076247005,3.0566,2575.2,2574.5,3.88415]
[1724076247268,3.0566,2575.2,2574.3,9.31341]
[1724076247497,3.0566,2575.2,2574.3,13.19785]
[1724076247812,3.750557,2575.2,2574.6,3.88401]
[1724076248020,3.0566,2575.2,2574.5,3.88424]
[1724076248227,3.0566,2575.2,2574.5,3.88415]
[1724076248367,3.0566,2575.2,2574.6,6.88408]
[1724076248828,3.0566,2575.2,2574.8,3.88378]
[1724076249110,7.67272785,2576.3,2575.4,3.88281]
[1724076249111,3.299,2576.3,2575.4,3.88281]
[1724076249277,3.299,2576.3,2575.3,3.88295]
[1724076249486,3.949048,2576.2,2575.4,6.8828]
[1724076249708,3.231,2576.2,2575.4,6.8828]
[1724076249864,3.231,2576.2,2575.6,7.76509]
[1724076250069,3.231,2576.2,2575.6,7.76499]
[1724076250282,3.231,2576.2,2575.7,3.0]
[1724076250620,3.5541,2576.2,2575.7,3.0]
[1724076250911,3.5541,2576.2,2575.6,3.0]
[1724076251569,3.5541,2576.2,2575.5,3.0]
[1724076251770,3.5541,2576.2,2575.6,3.88257]
[1724076251971,3.231,2576.2,2575.7,6.88243]
[1724076252487,3.231,2576.2,2575.8,0.0776381]
[1724076252681,3.231,2576.2,2576.0,3.8819]
[1724076252875,3.231,2577.0,2576.2,3.88166]
[1724076253072,3.231,2577.0,2576.3,0.07762099]
[1724076253271,3.231,2577.0,2576.3,3.88141]
[1724076253470,3.231,2577.0,2576.5,3.88112]
[1724076253713,3.231,2577.0,2576.6,3.88095]
[1724076254124,3.1426,2577.7,2576.9,3.88058]
[1724076254421,3.1426,2577.7,2577.0,0.46565621]
[1724076254622,3.1426,2577.7,2576.9,3.88052]
[1724076254805,3.1426,2577.7,2576.7,12.30988]
[1724076255010,3.1426,2577.7,2576.8,3.0]
[1724076255553,3.1426,2577.7,2576.8,38.0]
[1724076255750,0.31426,2577.6,2576.8,38.0]
[1724076256110,0.31426,2577.6,2576.9,3.88054]
[1724076256310,3.1426,2577.7,2576.8,38.0]
[1724076256663,3.0597,2577.6,2576.8,3.0]
[1724076256806,3.1915,2577.5,2576.8,3.0]
[1724076256999,3.1915,2577.3,2576.8,3.0]
[1724076257902,3.1915,2577.3,2576.8,38.0]
[1724076258399,3.1915,2577.3,2576.8,41.88077]
[1724076258744,3.1915,2577.3,2576.8,38.0]
[1724076258914,3.51065,2577.3,2576.8,38.0]
[1724076259313,3.1915,2577.3,2576.8,3.0]
[1724076259763,3.1915,2577.3,2576.9,0.55]
[1724076260059,3.1915,2577.3,2576.9,3.88062]
[1724076260212,3.1915,2577.3,2576.9,7.76115]
[1724076260409,3.2498,2577.9,2577.1,3.88022]
[1724076260639,3.2498,2577.9,2577.3,3.87993]
[1724076261044,3.2498,2577.9,2577.4,3.0]
[1724076261267,3.2498,2577.9,2577.5,9.30872]
[1724076261472,3.87794,2578.7,2577.7,3.87939]
[1724076261645,3.87794,2578.7,2577.6,3.0]
[1724076261646,3.3495,2578.6,2577.6,6.87949]
[1724076261849,3.3495,2578.6,2577.7,3.8794]
[1724076261850,3.737294,2578.6,2577.7,3.8794]
[1724076262036,3.737294,2578.6,2577.5,9.85864]
[1724076262037,3.737294,2578.6,2577.8,3.0]
[1724076262271,0.7615234,2578.5,2577.8,3.0]
[1724076262452,3.737294,2578.6,2577.8,3.0]
[1724076262652,3.737294,2578.6,2577.8,6.87918]
[1724076262852,3.737294,2578.6,2577.8,3.0]
[1724076263279,3.737294,2578.6,2577.8,6.87926]
[1724076263439,0.3737294,2578.5,2577.8,6.87926]
[1724076263638,3.3495,2578.6,2577.9,3.87904]
[1724076263842,3.3495,2578.6,2578.0,3.0]
[1724076264436,3.3495,2578.6,2578.3,5.429]
[1724076264638,3.2754,2579.2,2578.4,3.0]
[1724076264881,4.41111,2579.2,2578.4,3.0]
[1724076265097,4.41111,2579.2,2578.6,3.87799]
[1724076265098,3.2754,2579.2,2578.6,3.87799]
[1724076265296,3.2754,2579.2,2578.6,0.07755519]
[1724076265596,3.2754,2579.2,2578.7,7.75573]
[1724076265759,3.2754,2579.2,2578.8,6.87766]
[1724076265946,3.2754,2579.2,2578.9,3.87757]
[1724076266272,3.2754,2579.2,2579.0,3.0]
[1724076266476,3.2754,2579.2,2578.8,3.0]
[1724076267305,3.2754,2579.2,2579.0,3.87746]